bitfinex-derivatives/quotes_ETHF0:USTF0_20250224
["timestamp","ask_amount","ask_price","bid_price","bid_amount"]
[1740420031947,0.75068,2663.9,2663.8,3.2078]
[1740420032156,0.75077,2663.6,2663.5,3.74179]
[1740420032346,3.33581985,2663.6,2663.5,3.74179]
[1740420032750,4.08658985,2663.6,2663.5,2.991]
[1740420033150,0.75082,2663.4,2663.3,1.33165]
[1740420033350,0.75082,2663.4,2663.3,4.32265]
[1740420033550,0.75081,2663.5,2663.4,0.75082]
[1740420033743,4.08662985,2663.5,2663.4,0.75082]
[1740420033939,0.75082,2663.4,2663.3,3.5718]
[1740420034246,4.08663985,2663.4,2663.3,3.5718]
[1740420034445,0.75082,2663.4,2663.3,0.5808]
[1740420034953,0.75085,2663.3,2663.2,4.54697]
[1740420035247,4.08666985,2663.3,2663.2,4.54697]
[1740420035447,3.33581985,2663.3,2663.2,4.54697]
[1740420035854,4.08666985,2663.3,2663.2,3.7961]
[1740420036055,3.33581985,2663.3,2663.2,4.54698]
[1740420036756,4.08666985,2663.3,2663.2,4.54698]
[1740420036949,4.08666985,2663.3,2663.2,1.33918]
[1740420037452,3.33581985,2663.3,2663.2,1.33918]
[1740420038253,4.08666985,2663.3,2663.2,1.33918]
[1740420038650,4.08666985,2663.3,2663.2,0.5883]
[1740420038951,3.33581985,2663.3,2663.2,1.33918]
[1740420039147,4.08666985,2663.3,2663.2,1.33918]
[1740420039343,3.33581985,2663.3,2663.0,3.5669]
[1740420039545,4.08671985,2663.2,2663.1,0.75091]
[1740420039953,0.7509,2663.2,2663.1,0.75091]
[1740420040153,0.75089,2663.2,2663.1,0.7509]
[1740420040460,3.2078,2663.6,2663.1,0.75088]
[1740420040758,3.33581985,2663.2,2663.1,0.75088]
[1740420041157,0.75088,2663.2,2663.1,0.75088]
[1740420041354,3.2078,2663.6,2663.0,3.5669]
[1740420041553,0.75088,2663.3,2663.2,0.75087]
[1740420041753,4.08669985,2663.3,2663.2,0.75087]
[1740420042458,0.7509,2663.2,2663.1,0.75089]
[1740420042956,3.33581985,2663.2,2663.0,0.5759]
[1740420043260,4.08672985,2663.1,2663.0,1.32684]
[1740420043463,3.33581985,2663.1,2663.0,1.32684]
[1740420044456,3.33581985,2663.1,2663.0,1.78398926]
[1740420045868,0.5603,2663.3,2663.2,0.75088]
[1740420046065,0.75078,2663.6,2663.0,1.03304926]
[1740420046264,3.33581985,2663.4,2663.3,0.75085]
[1740420046868,1.30378,2663.6,2663.5,0.7508]
[1740420047265,3.88881985,2663.6,2663.3,2.991]
[1740420047463,3.33581985,2663.4,2663.3,2.991]
[1740420047663,3.33581985,2663.4,2663.3,3.44867412]
[1740420047866,0.553,2663.6,2663.3,3.44867412]
[1740420048067,3.33581985,2663.4,2663.3,3.44867412]
[1740420048271,3.33581985,2663.4,2663.3,4.19952412]
[1740420048569,0.75082,2663.5,2663.4,0.75082]
[1740420048570,0.7508,2663.5,2663.4,0.75082]
[1740420048869,4.08661985,2663.5,2663.4,0.75082]
[1740420049771,3.33581985,2663.5,2663.4,0.75082]
[1740420050064,0.5706,2663.9,2663.8,0.75071]
[1740420050270,0.5706,2663.9,2663.5,1.87693]
[1740420050271,3.33581985,2663.8,2663.5,3.749]
[1740420050470,3.33581985,2663.8,2663.7,0.75074]
[1740420050667,0.00562419,2664.0,2663.9,0.75068]
[1740420051064,0.00562419,2664.0,2663.9,3.95848]
[1740420051770,0.00562419,2664.0,2663.9,4.41615662]
[1740420052772,0.75628419,2664.0,2663.9,3.66547662]
[1740420053174,0.75628419,2664.0,2663.9,3.2078]
[1740420053577,4.09210404,2664.0,2663.9,3.2078]
[1740420054171,3.34144404,2664.0,2663.5,0.5412]
[1740420054375,3.33581985,2663.6,2663.5,1.29199]
[1740420054576,3.33581985,2663.7,2663.6,0.75077]
[1740420055070,0.75072,2663.8,2663.6,0.75077]
[1740420055274,1.142,2663.9,2663.6,0.75077]
[1740420055275,4.08655985,2663.7,2663.6,0.75077]
[1740420055775,0.75077,2663.6,2663.5,4.28298]
[1740420056776,0.75075,2663.7,2663.6,0.75075]
[1740420057071,4.08656985,2663.7,2663.6,0.75075]
[1740420057378,0.75077,2663.6,2663.5,3.5322]
[1740420057577,3.33581985,2663.6,2662.9,3.2078]
[1740420057780,3.33581985,2663.6,2663.0,2.991]
[1740420057781,3.33581985,2663.4,2663.0,2.991]
[1740420057970,0.5838,2663.3,2663.0,2.991]
[1740420058281,0.75094,2663.0,2662.9,3.777]
[1740420058468,3.33581985,2663.0,2662.9,4.31117]
[1740420058669,0.7509,2663.2,2663.1,0.75089]
[1740420058977,0.7509,2663.2,2662.9,3.5602]
[1740420058978,3.33581985,2663.1,2663.0,0.75094]
[1740420059278,3.33581985,2663.1,2663.0,1.20868218]
[1740420059780,0.5838,2663.3,2663.0,0.45774218]
[1740420059781,0.7509,2663.2,2663.0,0.45774218]
[1740420059973,3.33581985,2663.1,2663.0,1.20868218]
[1740420060374,4.17472419,2664.0,2663.0,0.45774218]
[1740420060575,3.33581985,2663.5,2663.4,3.95862]
[1740420060772,2.46054,2663.9,2663.4,3.2078]
[1740420060973,0.75082,2663.4,2663.3,2.991]
[1740420061279,4.08663985,2663.4,2663.3,2.991]
[1740420061578,4.64613985,2663.4,2663.3,2.991]
[1740420061969,3.89531985,2663.4,2663.0,3.5304]
[1740420062171,4.08672985,2663.1,2663.0,0.5394]
[1740420062378,4.08672985,2663.1,2663.0,3.5304]
[1740420062781,4.08672985,2663.1,2663.0,4.28134]
[1740420062976,3.33581985,2663.1,2663.0,4.28134]
[1740420063375,4.08672985,2663.1,2663.0,4.28134]
[1740420063877,8.42091985,2663.1,2662.3,2.991]
[1740420064175,3.33581985,2662.5,2662.4,0.45799188]
[1740420064373,3.2078,2662.8,2662.4,0.45799188]
[1740420064580,3.33581985,2662.5,2662.4,1.20910188]
[1740420064779,4.08689985,2662.5,2662.4,0.45799188]
[1740420065174,0.75113,2662.3,2662.2,3.7961]
[1740420065380,4.08694985,2662.3,2662.2,3.7961]
[1740420065579,3.33581985,2662.3,2662.2,4.54726]
[1740420065771,0.00562419,2662.5,2662.2,3.7961]
[1740420065979,0.00562419,2662.5,2662.4,0.75111]
[1740420066377,0.00562419,2662.5,2662.4,1.20859142]
[1740420066976,0.00562419,2662.5,2662.4,0.45745121]
[1740420067178,0.00562419,2662.5,2662.4,1.20856121]
[1740420067580,0.00562419,2662.5,2662.3,2.991]
[1740420067581,0.75111,2662.4,2662.3,2.991]
[1740420067778,4.08692985,2662.4,2662.3,2.991]
[1740420067975,3.33581985,2662.4,2662.3,2.991]
[1740420068179,4.08692985,2662.4,2662.3,3.74213]
[1740420068888,3.33581985,2662.4,2662.3,3.74213]
[1740420069086,3.33581985,2662.4,2662.3,2.991]
[1740420069285,0.58732419,2662.5,2662.4,0.75111]
[1740420069584,4.19e-06,2662.5,2662.4,0.75111]
[1740420069887,0.5552,2663.5,2663.4,0.75082]
[1740420070282,3.89101985,2663.5,2663.4,0.75082]
[1740420070488,0.75083,2663.4,2663.3,0.75084]
[1740420070686,3.33581985,2663.4,2663.2,41.3828]
[1740420070987,0.5895,2663.8,2663.7,0.75074]
[1740420071190,8.49445814,2664.2,2663.6,2.991]
[1740420071391,3.33581985,2663.8,2663.7,1.32984]
[1740420071586,4.08652985,2663.8,2663.7,0.5791]
[1740420071991,3.33581985,2663.8,2663.3,3.7668]
[1740420072186,0.5895,2663.7,2663.6,0.75077]
[1740420072585,3.92531985,2663.7,2663.6,0.75077]
[1740420072786,3.92531985,2663.7,2663.4,2.991]
[1740420073095,3.33581985,2663.6,2663.4,2.991]
[1740420073295,3.33581985,2663.6,2663.5,0.7508]
[1740420073487,0.00562419,2664.0,2663.4,2.991]
[1740420073795,0.00562419,2664.0,2663.9,0.75068]
[1740420074092,0.00562419,2664.0,2663.9,3.74168]
[1740420074282,0.00562419,2664.0,2663.9,6.94948]
[1740420078398,4.09210404,2664.0,2663.9,6.1988]
[1740420078596,3.34144404,2664.0,2663.9,6.94948]
[1740420078893,0.00562419,2664.0,2663.9,6.94948]
[1740420080189,0.75048,2664.7,2664.6,0.75049]
[1740420080388,3.33581985,2664.4,2664.3,4.31417]
[1740420081689,0.00562419,2664.6,2664.5,0.75051]
[1740420081891,0.537,2665.0,2664.9,0.7504]
[1740420082101,3.87281985,2665.0,2664.9,0.7504]
[1740420083002,0.75043,2664.8,2664.7,2.991]
[1740420083202,4.08624985,2664.8,2664.7,2.991]
[1740420083403,4.08624985,2664.8,2664.7,3.74146]
[1740420083803,4.08624985,2664.8,2664.7,2.991]
[1740420084105,4.08624985,2664.8,2664.7,3.74146]
[1740420084801,3.33581985,2664.8,2664.7,3.74146]
[1740420085193,4.08624985,2664.8,2664.7,0.75046]
[1740420085397,4.08624985,2664.8,2664.7,3.74046]
[1740420085600,3.33581985,2664.8,2664.7,3.74046]
[1740420086300,0.00562419,2665.2,2665.1,0.75035]
[1740420086604,4.08618985,2665.0,2664.9,3.7908]
[1740420086896,0.75037,2665.0,2664.9,3.2078]
[1740420087103,4.08618985,2665.0,2664.9,3.2078]
[1740420087697,4.08618985,2665.0,2664.9,3.9582]
[1740420087899,4.08618985,2665.0,2664.9,3.2078]
[1740420088096,4.67248985,2665.0,2664.9,3.2078]
[1740420088302,3.92211985,2665.0,2664.9,3.9582]
[1740420088606,4.67248985,2665.0,2664.9,3.9582]
[1740420089903,0.00562419,2665.2,2664.9,3.2078]
[1740420090099,0.75595419,2665.2,2665.1,0.75035]
[1740420090306,3.33581985,2665.0,2664.9,3.7576]
[1740420090507,4.08620985,2665.0,2664.9,0.75038]
[1740420090694,0.75039,2665.0,2664.9,0.75038]
[1740420090901,0.75036,2665.1,2665.0,0.75035]
[1740420091202,4.08621985,2664.9,2664.8,3.7404]
[1740420092207,3.33581985,2664.9,2664.8,3.7404]
[1740420092412,0.75596419,2665.2,2665.1,0.75035]
[1740420092908,4.09178404,2665.2,2665.1,0.75035]
[1740420093611,0.75036,2665.1,2665.0,0.75035]
[1740420094012,4.08617985,2665.1,2665.0,0.75035]
[1740420094409,3.33581985,2665.1,2665.0,0.75035]
[1740420094711,3.33581985,2665.1,2664.9,0.75038]
[1740420094712,0.7504,2665.0,2664.9,0.75038]
[1740420095012,4.08621985,2665.0,2664.9,0.75038]
[1740420095214,0.7504,2665.0,2664.9,0.75038]
[1740420095413,0.00562419,2665.2,2664.8,3.7404]
[1740420095414,0.7504,2664.9,2664.8,3.7404]
[1740420095609,0.75043,2664.8,2664.6,0.5478]
[1740420095810,6.54361985,2664.7,2664.1,0.00562419]
[1740420096117,3.33581985,2664.2,2664.1,0.75623419]
[1740420096610,1.1437,2664.6,2664.1,0.00562419]
[1740420096806,3.2078,2665.0,2664.2,3.2078]
[1740420097012,3.33581985,2664.8,2664.7,0.75046]
[1740420097212,3.33581985,2664.8,2664.7,3.73946]
[1740420097412,0.75039,2665.0,2664.9,0.75039]
[1740420097707,4.08624985,2664.8,2664.7,4.30956]
[1740420098016,3.33581985,2664.8,2664.7,4.30956]
[1740420098216,1.1531,2665.1,2664.7,3.5591]
[1740420098513,4.08624985,2664.8,2664.7,4.30954]
[1740420098916,1.1531,2665.1,2665.0,0.75037]
[1740420099110,1.31295,2665.1,2665.0,0.75037]
[1740420099310,4.64876985,2665.1,2665.0,0.75037]
[1740420100112,0.75038,2665.0,2664.9,0.75038]
[1740420100317,3.33581985,2665.0,2664.9,0.75038]
[1740420100513,4.08618985,2665.0,2664.9,0.75038]
[1740420101016,3.33581985,2665.0,2664.7,3.5591]
[1740420101219,3.33581985,2664.9,2664.8,0.75043]
[1740420101627,4.08621985,2664.9,2664.8,0.75043]
[1740420102423,4.08621985,2664.9,2664.7,0.5701]
[1740420102424,0.75043,2664.8,2664.7,0.5701]
[1740420102625,4.08624985,2664.8,2664.7,0.5701]
[1740420104120,4.08624985,2664.8,2664.7,1.32056]
[1740420104717,4.08624985,2664.8,2664.7,0.5701]
[1740420105029,4.08624985,2664.8,2664.7,1.32056]
[1740420105522,0.00562419,2665.2,2664.8,1.87607]
[1740420105723,0.00562419,2665.2,2665.1,0.75035]
[1740420106030,0.75594419,2665.2,2665.1,0.75035]
[1740420106230,4.09176404,2665.2,2665.1,0.75035]
[1740420106729,0.75035,2665.1,2665.0,1.33676]
[1740420106928,4.08616985,2665.1,2665.0,0.5864]
[1740420107228,0.75035,2665.1,2665.0,1.33677]
[1740420109020,0.75035,2665.1,2665.0,0.5864]
[1740420109427,0.75035,2665.1,2665.0,1.33677]
[1740420109827,0.00562419,2665.2,2665.0,0.5864]
[1740420110130,4.08616985,2665.1,2665.0,1.33675]
[1740420110926,4.08616985,2665.1,2665.0,0.5864]
[1740420111429,4.08616985,2665.1,2665.0,1.33677]
[1740420112624,0.75043,2664.8,2664.7,0.5701]
[1740420112829,3.33581985,2664.8,2664.7,1.32056]
[1740420113525,0.00562419,2665.2,2665.1,0.75035]
[1740420113928,0.75035,2665.1,2665.0,1.30967]
[1740420114233,4.08616985,2665.1,2665.0,0.5593]
[1740420114426,0.75043,2664.8,2664.7,0.5701]
[1740420114728,4.08624985,2664.8,2664.7,3.5591]
[1740420115033,4.08624985,2664.8,2664.7,0.5701]
[1740420116223,4.08624985,2664.8,2664.7,4.52836]
[1740420116424,0.00562419,2665.2,2665.1,0.75035]
[1740420116625,3.34144404,2665.2,2665.1,0.75035]
[1740420117131,3.34144404,2665.2,2664.7,6.24135]
[1740420117437,3.33581985,2664.9,2664.8,0.75043]
[1740420117634,4.08621985,2664.9,2664.8,0.75043]
[1740420117930,0.7504,2664.9,2664.8,0.75043]
[1740420118730,0.75043,2664.8,2664.7,3.7779]
[1740420118935,4.66644985,2664.8,2664.7,3.7779]
[1740420119333,4.66644985,2664.8,2664.7,1.32056]
[1740420119334,3.33581985,2664.8,2664.7,1.32056]
[1740420119535,1.0811,2665.1,2665.0,0.75037]
[1740420120029,4.41691985,2665.1,2664.7,3.7779]
[1740420120231,3.33581985,2664.8,2664.7,1.32056]
[1740420120536,3.33581985,2664.9,2664.7,0.5701]
[1740420120733,0.75595419,2665.2,2665.1,0.75035]
[1740420121131,4.09177404,2665.2,2665.1,0.75035]
[1740420121331,3.34144404,2665.2,2665.1,0.75035]
[1740420121731,3.2078,2666.0,2665.1,3.2078]
[1740420121933,0.5701,2665.7,2665.6,0.75021]
[1740420122233,3.2078,2666.4,2666.0,0.75009]
[1740420122433,3.2078,2666.4,2665.7,1.87539]
[1740420122434,3.33581985,2666.1,2665.7,4.3484]
[1740420122636,3.33581985,2665.8,2665.7,4.3484]
[1740420122931,3.33581985,2665.8,2665.7,0.5563]
[1740420123128,4.08596985,2665.8,2665.7,0.5563]
[1740420123332,3.33581985,2665.8,2665.5,0.00562419]
[1740420123535,0.75018,2665.7,2665.6,2.989]
[1740420123830,1.32028,2665.7,2665.6,2.989]
[1740420124033,4.65609985,2665.7,2665.6,2.989]
[1740420124233,3.33581985,2665.7,2665.6,3.73921]
[1740420124538,0.00562419,2666.0,2665.8,0.75013]
[1740420124731,0.75572419,2666.0,2665.9,0.5563]
[1740420124934,0.75572419,2666.0,2665.9,1.0974]
[1740420125230,4.09154404,2666.0,2665.9,1.0974]
[1740420125437,0.75018,2665.7,2665.6,3.44630531]
[1740420125636,4.08599985,2665.7,2665.6,1.1219]
[1740420125837,4.08599985,2665.7,2665.6,3.5698]
[1740420126035,4.08599985,2665.7,2665.6,0.5808]
[1740420126238,4.08599985,2665.7,2665.5,0.00562419]
[1740420126239,0.75021,2665.6,2665.5,0.00562419]
[1740420126431,5.75132985,2665.6,2665.5,0.00562419]
[1740420126641,0.75043,2664.8,2664.7,3.5301]
[1740420126940,3.33581985,2664.9,2664.8,0.75043]
[1740420127337,0.75037,2665.1,2664.9,0.75039]
[1740420127538,3.33581985,2664.9,2664.8,3.2078]
[1740420127737,3.33581985,2664.9,2664.8,3.95821]
[1740420127939,3.2078,2665.4,2664.9,0.7504]
[1740420128238,4.08618985,2665.0,2664.9,0.75038]
[1740420128439,3.33581985,2665.0,2664.9,0.75038]
[1740420129535,4.08621985,2665.0,2664.8,3.95822]
[1740420129840,4.08619985,2665.0,2664.9,0.7504]
[1740420130030,3.33581985,2665.0,2664.9,0.7504]
[1740420130234,3.33581985,2665.0,2664.9,0.555]
[1740420130439,4.08618985,2665.0,2664.9,0.555]
[1740420131140,4.08618985,2665.0,2664.9,1.3054]
[1740420131535,3.33581985,2665.0,2664.9,1.3054]
[1740420131730,3.33581985,2665.0,2664.9,1.8947]
[1740420132137,1.6653,2665.6,2664.9,1.1443]
[1740420132442,4.08618985,2665.0,2664.9,0.555]
[1740420132737,0.7504,2664.9,2664.8,44.0078]
[1740420132937,4.08621985,2664.9,2664.8,44.0078]
[1740420133244,0.7504,2664.9,2664.8,44.0078]
[1740420133539,0.75043,2664.8,2664.7,0.5411]
[1740420133741,4.08624985,2664.8,2664.7,3.5301]
[1740420133943,0.75043,2664.8,2664.7,3.5301]
[1740420134141,0.75046,2664.7,2664.6,2.99462419]
[1740420134343,4.08627985,2664.7,2664.6,0.00562419]
[1740420134746,7.29407985,2664.7,2664.6,0.00562419]
[1740420135345,3.34331,2665.0,2664.6,0.00562419]
[1740420135346,1.84208,2665.0,2664.6,0.00562419]
[1740420135642,3.87551985,2665.0,2664.9,0.7504]
[1740420136341,3.33581985,2665.0,2664.9,0.7504]
[1740420137137,0.5397,2665.3,2664.7,6.1968]
[1740420137350,3.33581985,2665.2,2665.1,0.75035]
[1740420137543,3.33581985,2665.2,2665.1,3.74035]
[1740420137744,1.29,2665.3,2665.2,0.75032]
[1740420138143,4.62581985,2665.3,2665.2,0.75032]
[1740420138344,3.87551985,2665.3,2665.2,0.75032]
[1740420138648,0.5478,2665.6,2665.2,0.75032]
[1740420138649,3.2078,2665.9,2665.2,1.1423]
[1740420138845,3.33581985,2665.5,2665.4,0.75026]
[1740420139047,0.75025,2665.5,2665.3,0.75029]
[1740420139348,0.5442,2665.8,2665.7,0.75018]
[1740420139651,3.33581985,2665.8,2665.7,3.95798]
[1740420139845,0.00562419,2666.0,2665.6,2.991]
[1740420140044,3.33581985,2665.7,2665.4,3.2078]
[1740420140249,4.08604985,2665.5,2665.4,2.997]
[1740420140554,0.75026,2665.4,2665.3,3.5435]
[1740420140753,3.33581985,2665.4,2665.3,4.29379]
[1740420140946,4.08607985,2665.4,2665.3,3.5435]
[1740420141147,4.08607985,2665.4,2665.3,4.29379]
[1740420141148,3.33581985,2665.4,2665.3,4.29379]
[1740420141448,0.5805,2665.6,2665.5,0.75023]
[1740420141651,3.91631985,2665.6,2665.5,0.75023]
[1740420141848,3.33581985,2665.6,2665.5,3.95803]
[1740420142551,0.5805,2665.9,2665.8,0.75015]
[1740420142746,3.33581985,2665.9,2665.8,0.75015]
[1740420142950,0.5357,2666.1,2665.9,0.75012]
[1740420143248,0.75573419,2666.0,2665.8,1.1294]
[1740420143451,0.75571419,2666.0,2665.9,0.75012]
[1740420143653,0.75571419,2666.0,2665.8,1.1294]
[1740420143853,0.00562419,2666.0,2665.8,1.1294]
[1740420144052,0.00562419,2666.0,2665.7,2.999]
[1740420144053,3.33581985,2665.9,2665.7,2.999]
[1740420144249,4.62716985,2665.8,2665.7,2.999]
[1740420145759,0.75572419,2666.0,2665.9,0.75012]
[1740420146152,0.75572419,2666.0,2665.7,2.999]
[1740420146153,0.75014,2665.9,2665.8,0.75014]
[1740420146354,0.75015,2665.8,2665.7,2.999]
[1740420146553,4.08596985,2665.8,2665.7,2.999]
[1740420146761,0.75015,2665.8,2665.7,2.999]
[1740420146955,0.75013,2665.9,2665.8,0.75013]
[1740420147160,3.33581985,2665.8,2665.7,3.74918]
[1740420147355,0.00562419,2666.0,2665.9,0.75012]
[1740420148755,0.07593934,2667.1,2665.9,0.5557]
[1740420148951,0.07593934,2667.1,2666.4,3.2078]
[1740420149156,3.33581985,2667.0,2666.7,3.2078]
[1740420149363,3.33581985,2667.0,2666.9,0.74984]
[1740420149557,3.33581985,2667.0,2666.9,3.76184]
[1740420149765,0.74974,2667.3,2666.9,3.012]
[1740420149957,3.33581985,2667.1,2666.9,3.012]
[1740420150655,4.08562985,2667.0,2666.9,3.012]
[1740420150964,3.33581985,2667.0,2666.9,3.76184]
[1740420151262,0.00562419,2667.2,2667.1,0.74978]
[1740420152258,4.19e-06,2667.2,2667.1,1.30068]
[1740420152464,4.19e-06,2667.2,2667.1,1.86378]
[1740420152762,4.08558404,2667.2,2667.1,0.5509]
[1740420153063,0.74976419,2667.2,2667.1,0.74978]
[1740420153263,4.19e-06,2667.2,2667.1,0.74978]
[1740420153959,0.74978,2667.1,2667.0,3.2078]
[1740420154265,3.33582404,2667.2,2667.1,0.74978]
[1740420154266,4.19e-06,2667.2,2667.1,0.74978]
[1740420155360,4.19e-06,2667.2,2667.1,4.33948]
[1740420156961,4.19e-06,2667.2,2667.1,45.13948]
[1740420157161,4.19e-06,2667.2,2667.1,45.14348]
[1740420157362,4.19e-06,2667.2,2667.1,4.34548]
[1740420158666,4.19e-06,2667.2,2667.1,45.14548]
[1740420159862,4.19e-06,2667.2,2667.1,51.14548]
[1740420160467,4.19e-06,2667.2,2667.1,4.34548]
[1740420163665,3.33582404,2667.2,2667.0,3.2078]
[1740420163863,4.08559985,2667.1,2667.0,3.2078]
[1740420164170,3.33581985,2667.1,2667.0,3.95761]
[1740420164365,4.19e-06,2667.2,2667.1,0.74978]
[1740420167371,4.19e-06,2667.2,2667.0,44.5986]
[1740420167372,0.74978,2667.1,2667.0,44.0078]
[1740420167564,4.08559985,2667.1,2667.0,3.2078]
[1740420167871,3.90801985,2667.1,2667.0,3.95761]
[1740420169373,4.65779985,2667.1,2667.0,3.2078]
[1740420169572,4.65779985,2667.1,2667.0,3.95761]
[1740420169763,0.74987,2666.8,2666.7,0.00562419]
[1740420169966,7.29348985,2666.8,2666.7,0.00562419]
[1740420170269,6.54361985,2666.8,2666.2,3.2078]
[1740420170572,0.74997,2666.5,2666.4,0.74997]
[1740420170869,3.33581985,2666.4,2666.3,0.75001]
[1740420171269,0.5441,2666.7,2666.5,0.74994]
[1740420171475,0.74993,2666.6,2666.5,0.74994]
[1740420171774,5.21066985,2666.6,2666.2,3.2078]
[1740420171971,0.75004,2666.2,2666.1,0.00562419]
[1740420172174,4.08585985,2666.2,2666.1,0.00562419]
[1740420172376,0.5337,2666.4,2666.1,0.00562419]
[1740420172677,3.33581985,2666.4,2666.3,0.75001]
[1740420172975,0.5586,2666.5,2666.1,0.00562419]
[1740420172976,4.08583985,2666.3,2666.1,0.00562419]
[1740420173267,3.33581985,2666.4,2666.3,0.74998]
[1740420173466,3.33581985,2666.4,2666.1,0.00562419]
[1740420173673,4.08580985,2666.4,2666.2,0.75001]
[1740420173974,4.08580985,2666.4,2666.1,0.00562419]
[1740420174174,4.08580985,2666.4,2666.3,0.75001]
[1740420174474,3.33581985,2666.4,2666.3,0.75001]
[1740420174973,3.33581985,2666.4,2666.2,3.2078]
[1740420174974,0.5586,2666.5,2666.4,0.74998]
[1740420175268,1.30855,2666.5,2666.4,0.74998]
[1740420175463,4.64436985,2666.5,2666.4,3.78198]
[1740420175667,4.64436985,2666.5,2666.4,3.032]
[1740420177269,4.64436985,2666.5,2666.4,3.78198]
[1740420177670,4.64436985,2666.5,2666.4,3.032]
[1740420177868,0.75001,2666.3,2666.2,3.2078]
[1740420178068,4.08582985,2666.3,2666.2,3.2078]
[1740420178877,0.5586,2666.5,2666.4,0.74998]
[1740420179075,1.30858,2666.5,2666.4,0.74998]
[1740420179273,4.64439985,2666.5,2666.4,0.74998]
[1740420179476,3.89441985,2666.5,2666.4,0.74998]
[1740420179776,0.75001,2666.3,2666.2,3.2078]
[1740420179978,3.33581985,2666.3,2666.1,3.03462419]
[1740420180183,0.5586,2666.5,2666.1,3.03462419]
[1740420180378,3.2078,2667.5,2666.2,3.2078]
[1740420180679,3.33581985,2666.8,2666.7,0.7499]
[1740420180979,4.08568985,2666.8,2666.7,3.037]
[1740420182473,1.8748,2666.7,2666.2,3.036]
[1740420182674,0.75004,2666.2,2666.1,0.00562419]
[1740420182873,7.29365985,2666.2,2666.1,0.00562419]
[1740420183074,8.96125985,2666.2,2666.1,0.00562419]
[1740420184682,0.75023,2665.5,2665.4,42.09784]
[1740420184880,0.75023,2665.5,2665.4,3.78624]
[1740420185080,4.08604985,2665.5,2665.4,3.036]
[1740420185380,0.7503,2665.3,2665.2,0.75031]
[1740420185576,4.08611985,2665.3,2665.2,3.037]
[1740420185777,4.08611985,2665.3,2665.0,5.08746]
[1740420185778,0.75035,2665.1,2665.0,4.3371]
[1740420186078,4.08616985,2665.1,2665.0,0.00562419]
[1740420186675,0.75053,2664.5,2664.2,0.5529]
[1740420186874,4.08634985,2664.5,2664.4,3.04]
[1740420188283,0.586,2665.0,2664.4,6.2478]
[1740420188584,0.586,2665.0,2664.4,3.04]
[1740420188585,3.33581985,2664.5,2664.4,3.04]
[1740420188785,4.08632985,2664.5,2664.4,3.04]
[1740420189080,0.75057,2664.3,2664.2,3.04462419]
[1740420189287,0.75057,2664.3,2664.2,3.79522419]
[1740420189288,3.33581985,2664.3,2664.2,3.79522419]
[1740420189779,4.08638985,2664.3,2664.2,3.04462419]
[1740420190280,3.33581985,2664.3,2664.2,0.00562419]
[1740420190780,3.2078,2664.7,2664.2,0.00562419]
[1740420190982,3.33581985,2664.4,2664.3,0.75056]
[1740420191477,0.547,2664.8,2664.7,0.75046]
[1740420191687,3.2078,2665.3,2664.7,6.2508]
[1740420191977,3.33581985,2664.8,2664.7,3.2078]
[1740420192182,3.33581985,2664.8,2664.7,3.044]
[1740420192379,0.5757,2665.4,2664.8,1.87608]
[1740420192678,0.5757,2665.4,2664.7,47.0518]
[1740420192880,3.33581985,2665.0,2664.8,0.75041]
[1740420193090,4.08624985,2664.8,2664.7,44.0078]
[1740420193379,4.08624985,2664.8,2664.7,3.049]
[1740420195986,4.08624985,2664.8,2664.4,3.2078]
[1740420195987,0.75051,2664.5,2664.4,3.2078]
[1740420196187,4.08632985,2664.5,2664.4,3.045]
[1740420198192,0.5494,2664.7,2664.6,0.75049]
[1740420198385,3.2078,2665.3,2664.6,0.75049]
[1740420198690,3.33581985,2664.9,2664.8,0.75043]
[1740420198891,3.33581985,2664.9,2664.8,3.79543]
[1740420199087,4.08621985,2664.9,2664.8,3.045]
[1740420200585,4.08621985,2664.9,2664.7,0.5766]
[1740420200586,0.75057,2664.3,2664.2,0.00562419]
[1740420200794,4.08638985,2664.3,2664.2,3.04962419]
[1740420201890,0.5878,2664.6,2664.4,0.75054]
[1740420202187,3.33581985,2664.4,2664.3,0.75056]
[1740420202392,3.33581985,2664.5,2664.2,6.25642419]
[1740420202590,3.33581985,2664.5,2664.4,0.75054]
[1740420202888,2.957,2664.9,2664.3,1.87644]
[1740420203095,4.08631985,2664.6,2664.5,0.75051]
[1740420203394,0.75051,2664.5,2664.4,0.5871]
[1740420203586,0.75056,2664.4,2664.3,0.75057]
[1740420203793,3.33581985,2664.4,2664.2,3.04862419]
[1740420203985,0.75057,2664.3,2664.2,3.79920419]
[1740420204184,4.08638985,2664.3,2664.2,3.04862419]
[1740420204892,4.08638985,2664.3,2664.2,0.00562419]
[1740420205188,4.08638985,2664.3,2664.2,3.04562419]
[1740420205392,4.08638985,2664.3,2664.2,0.00562419]
[1740420208193,4.08638985,2664.3,2664.2,0.75622419]
[1740420208595,3.33581985,2664.3,2664.2,0.75622419]
[1740420209393,1.0602,2664.6,2664.2,0.00562419]
[1740420209600,3.33581985,2664.4,2664.3,0.75057]
[1740420210094,0.75056,2664.4,2664.2,1.88220419]
[1740420210401,4.08638985,2664.3,2664.2,1.13162419]
[1740420210898,0.75057,2664.3,2664.2,1.13162419]
[1740420211100,1.5962,2664.6,2664.2,1.13162419]
[1740420211295,1.5962,2664.6,2664.2,1.88222419]
[1740420211495,3.33581985,2664.5,2664.4,0.75054]
[1740420211697,4.08632985,2664.5,2664.4,0.75054]
[1740420211894,1.81071,2664.6,2664.5,0.75051]
[1740420212097,3.33581985,2664.5,2664.2,4.33942419]
[1740420212302,4.08633985,2664.5,2664.4,0.75052]
[1740420212503,0.75053,2664.5,2664.4,0.75053]
[1740420212696,1.0602,2664.6,2664.5,0.75051]
[1740420213095,4.39601985,2664.6,2664.3,0.75057]
[1740420213298,0.75054,2664.4,2664.3,0.75057]
[1740420213498,3.33581985,2664.5,2664.2,1.13162419]
[1740420213702,0.75057,2664.3,2664.2,1.88220419]
[1740420213901,4.08637985,2664.4,2664.3,0.75057]
[1740420214200,0.75052,2664.5,2664.2,4.33942419]